bitfinex/quotes_BTCUSD_20220204
["timestamp","ask_amount","ask_price","bid_price","bid_amount"]
[1643954672480,0.04999999,37676.0,37673.0,0.83536518]
[1643954673278,0.04999999,37676.0,37674.0,0.30070682]
[1643954673925,0.04999999,37676.0,37674.0,0.43340082]
[1643954674127,0.04999999,37676.0,37675.0,0.3102256]
[1643954674322,0.04999999,37676.0,37674.0,0.132694]
[1643954674723,0.14810717,37676.0,37674.0,0.132694]
[1643954674923,0.09810718,37676.0,37675.0,0.01]
[1643954675126,0.13810717,37676.0,37673.0,0.45981079]
[1643954675523,0.13810717,37676.0,37673.0,0.67313233]
[1643954675728,0.13810717,37676.0,37673.0,0.45981079]
[1643954675923,0.13796488,37676.0,37673.0,0.45885448]
[1643954676124,0.13796488,37676.0,37673.0,0.4598108]
[1643954676724,0.13796488,37676.0,37674.0,0.23983866]
[1643954676928,0.03999999,37676.0,37674.0,0.23983866]
[1643954677127,0.03999999,37676.0,37675.0,0.01]
[1643954679176,0.03999999,37676.0,37675.0,0.076355]
[1643954679377,0.03499999,37676.0,37675.0,0.015]
[1643954679582,0.01806561,37680.0,37676.0,0.05]
[1643954679878,0.03499999,37677.0,37675.0,0.015]
[1643954680076,0.01806561,37680.0,37675.0,0.015]
[1643954680077,0.03499999,37676.0,37675.0,0.015]
[1643954680680,0.03499999,37676.0,37673.0,0.47520548]
[1643954680881,0.03499999,37676.0,37674.0,0.00095631]
[1643954681525,0.10346913,37675.0,37674.0,0.00095631]
[1643954681723,0.10346913,37675.0,37674.0,0.05095631]
[1643954682023,0.10346913,37675.0,37674.0,0.05]
[1643954683023,0.09275435,37675.0,37674.0,0.05]
[1643954684525,0.09275435,37675.0,37673.0,0.00095704]
[1643954685177,0.14275435,37675.0,37673.0,0.00095704]
[1643954685375,1.3031,37674.0,37673.0,0.00095704]
[1643954685577,1.65041,37674.0,37668.0,0.066377]
[1643954685777,1.3031,37674.0,37672.0,0.00095704]
[1643954686080,0.34731,37673.0,37672.0,0.00095704]
[1643954686275,0.45041,37673.0,37672.0,0.00095704]
[1643954686679,0.45041,37673.0,37668.0,0.066377]
[1643954686877,0.1031,37673.0,37671.0,0.00095706]
[1643954687079,0.79731,37672.0,37671.0,0.00095706]
[1643954687277,0.40041,37672.0,37671.0,0.00095706]
[1643954687880,0.40041,37672.0,37668.0,0.066377]
[1643954688080,0.40041,37672.0,37670.0,0.00095707]
[1643954688921,1.05630307,37671.0,37670.0,0.00095707]
[1643954689121,0.70671307,37671.0,37668.0,0.066377]
[1643954689324,0.35940307,37671.0,37669.0,0.00095708]
[1643954689522,0.03556337,37671.0,37670.0,0.33824737]
[1643954689725,0.02128023,37675.0,37670.0,0.70196143]
[1643954689925,0.02128023,37675.0,37674.0,0.04999999]
[1643954691231,0.0948805,37675.0,37673.0,0.06731604]
[1643954691622,0.0948805,37675.0,37673.0,0.066359]
[1643954692025,0.02128023,37675.0,37673.0,0.066359]
[1643954692223,0.02197715,37680.0,37673.0,0.066359]
[1643954692470,0.02197715,37680.0,37675.0,0.066363]
[1643954692671,0.02197715,37680.0,37677.0,0.22903172]
[1643954693072,0.10667628,37680.0,37677.0,0.22903172]
[1643954693271,0.15667628,37680.0,37677.0,0.22903172]
[1643954693673,0.13469913,37680.0,37676.0,0.06725141]
[1643954694175,0.13469913,37680.0,37676.0,0.0672514]
[1643954694472,0.34731,37679.0,37678.0,0.066356]
[1643954695877,0.08469913,37680.0,37678.0,0.066356]
[1643954697024,0.13469913,37680.0,37678.0,0.066356]
[1643954697226,0.69519725,37683.0,37678.0,0.066356]
[1643954697425,0.01819725,37683.0,37680.0,0.11635199]
[1643954697627,0.01819725,37683.0,37680.0,0.066352]
[1643954697826,0.0192067,37684.0,37680.0,0.066352]
[1643954699030,0.07633406,37682.0,37680.0,0.066352]
[1643954699984,2.0345884,37682.0,37676.0,0.24512193]
[1643954700283,0.34731,37681.0,37678.0,0.00089646]
[1643954700483,0.07633406,37682.0,37678.0,0.00089646]
[1643954700882,0.12633406,37682.0,37678.0,0.00089646]
[1643954701084,0.12633406,37682.0,37676.0,0.066365]
[1643954701285,0.12633406,37682.0,37678.0,0.00089645]
[1643954701687,0.12633406,37682.0,37678.0,0.13361145]
[1643954702283,0.12633406,37682.0,37678.0,0.132715]
[1643954702486,0.12633406,37682.0,37678.0,0.13361145]
[1643954703085,0.07633406,37682.0,37678.0,0.13361145]
[1643954703286,0.12633406,37682.0,37678.0,0.13361145]
[1643954703486,0.12633406,37682.0,37678.0,0.132715]
[1643954703723,0.12633406,37682.0,37678.0,0.13361147]
[1643954704227,0.07633406,37682.0,37678.0,0.13361147]
[1643954704422,0.07633406,37682.0,37678.0,0.18361147]
[1643954704624,0.07633406,37682.0,37679.0,0.066354]
[1643954704823,0.12633406,37682.0,37679.0,0.066354]
[1643954705023,0.12633406,37682.0,37678.0,0.13361147]
[1643954705524,0.12633406,37682.0,37678.0,0.36512976]
[1643954705723,0.12633406,37682.0,37678.0,0.43148676]
[1643954705925,0.12633406,37682.0,37678.0,0.43059029]
[1643954706124,0.09455858,37685.0,37678.0,0.43148676]
[1643954706323,0.07411483,37685.0,37678.0,0.43148676]
[1643954706524,0.07411483,37685.0,37679.0,0.22217872]
[1643954706924,0.02101483,37685.0,37680.0,0.066353]
[1643954707124,0.02011852,37685.0,37680.0,0.066353]
[1643954707372,0.10118872,37685.0,37680.0,0.066353]
[1643954707774,0.0810702,37685.0,37680.0,0.066353]
[1643954708173,0.1310702,37685.0,37680.0,0.066353]
[1643954708374,0.07371614,37688.0,37680.0,0.066353]
[1643954708375,0.34731,37687.0,37680.0,0.066353]
[1643954708575,0.00089634,37685.0,37680.0,0.066353]
[1643954708974,0.00089634,37685.0,37683.0,0.24341185]
[1643954709381,0.00089634,37685.0,37683.0,0.30976185]
[1643954709578,0.34731,37688.0,37684.0,0.29680132]
[1643954709777,0.00055368,37687.0,37684.0,0.30337634]
[1643954709978,0.00055368,37687.0,37684.0,0.09999999]
[1643954710179,0.00055368,37687.0,37685.0,0.04999999]
[1643954710376,0.00055368,37687.0,37686.0,0.24157927]
[1643954710576,0.34786368,37687.0,37686.0,0.24157927]
[1643954710875,0.34731,37687.0,37686.0,0.24157927]
[1643954711429,0.00089699,37688.0,37686.0,0.59125982]
[1643954711830,0.00089699,37688.0,37686.0,0.65759482]
[1643954712033,0.34731,37690.0,37686.0,0.65759482]
[1643954712230,0.12322361,37691.0,37689.0,0.2172816]
[1643954712430,0.01881815,37691.0,37689.0,0.2172816]
[1643954712633,0.01881815,37691.0,37687.0,0.13267]
[1643954713332,0.01971547,37691.0,37687.0,0.13267]
[1643954713531,0.11244999,37691.0,37687.0,0.13267]
[1643954713731,0.16244999,37691.0,37688.0,0.29607043]
[1643954713931,0.05089732,37691.0,37688.0,0.29607043]
[1643954714132,0.00089732,37691.0,37688.0,0.29607043]
[1643954714331,0.02156058,37696.0,37688.0,0.29607043]
[1643954714536,0.00093453,37691.0,37688.0,0.29607043]
[1643954715600,0.10196187,37695.0,37688.0,0.29607043]
[1643954715801,0.04169446,37696.0,37690.0,0.04999999]
[1643954715802,0.00093453,37691.0,37690.0,0.04999999]
[1643954716401,0.00093453,37691.0,37688.0,0.36240343]
[1643954716802,0.10046829,37693.0,37688.0,0.22973543]
[1643954717000,0.00093453,37691.0,37688.0,0.27973543]
[1643954717204,0.34731,37690.0,37687.0,0.13267]
[1643954717401,0.34731,37690.0,37689.0,0.04999999]
[1643954717602,0.00093453,37691.0,37687.0,0.18266999]
[1643954717803,0.00093453,37691.0,37688.0,0.05]
[1643954718103,0.03813714,37696.0,37690.0,0.24696209]
[1643954718302,0.00089474,37691.0,37690.0,0.29696209]
[1643954719128,0.09896684,37696.0,37690.0,0.29696209]
[1643954719326,0.34731,37695.0,37692.0,0.26737351]
[1643954719730,0.45,37691.0,37690.0,0.24696209]
[1643954719926,0.34731,37695.0,37690.0,0.29696209]
[1643954720527,0.7008947,37694.0,37693.0,0.04999999]
[1643954720729,0.0008947,37694.0,37693.0,0.04999999]
[1643954721127,0.0008947,37694.0,37690.0,0.24696209]
[1643954721426,0.0008947,37694.0,37689.0,0.29388583]
[1643954721628,0.34731,37695.0,37689.0,0.24388583]
[1643954721828,0.00089739,37694.0,37689.0,0.24388583]
[1643954722231,0.00089739,37694.0,37691.0,0.20045085]
[1643954722475,0.00089739,37694.0,37689.0,0.24388583]
[1643954722877,0.34731,37695.0,37689.0,0.24388583]
[1643954723079,0.0008974,37693.0,37689.0,0.24388583]
[1643954723277,0.0008974,37693.0,37692.0,0.04999999]
[1643954723876,0.0008974,37693.0,37692.0,0.3179475]
[1643954724076,0.01888809,37696.0,37692.0,0.3179475]
[1643954724277,0.00089739,37694.0,37692.0,0.3179475]
[1643954724881,0.00089739,37694.0,37692.0,0.04999999]
[1643954725278,0.28701414,37694.0,37690.0,0.066338]
[1643954725478,0.0008972,37695.0,37690.0,0.066338]
[1643954725678,0.05,37694.0,37689.0,0.24388583]
[1643954725879,0.34731,37693.0,37689.0,0.24388583]
[1643954726128,0.0008972,37695.0,37689.0,0.24388583]
[1643954726322,0.99692343,37697.0,37689.0,0.24388583]
[1643954726524,0.00089721,37694.0,37689.0,0.24388583]
[1643954727125,0.29036379,37694.0,37687.0,0.13267]
[1643954727325,0.10236503,37688.0,37686.0,0.11634599]
[1643954727529,0.33946658,37694.0,37686.0,0.11634599]
[1643954727726,0.40041,37693.0,37686.0,0.11634599]
[1643954727927,0.00089723,37692.0,37686.0,0.11634599]
[1643954728124,0.40041,37691.0,37687.0,0.25125487]
[1643954728330,0.40041,37691.0,37687.0,0.30125487]
[1643954728528,0.40041,37691.0,37687.0,0.36759587]
[1643954728927,0.40130725,37691.0,37687.0,0.36759587]
[1643954729127,0.34820725,37691.0,37687.0,0.36759587]
[1643954729326,0.00089725,37691.0,37687.0,0.36759587]
[1643954729984,0.01911251,37694.0,37687.0,0.36759587]
[1643954730189,0.00089725,37691.0,37690.0,0.066336]
[1643954731286,0.0988844,37692.0,37690.0,0.066336]
[1643954731485,0.09978164,37692.0,37690.0,0.066336]
[1643954731988,0.14978164,37692.0,37690.0,0.066336]
[1643954732387,0.0988844,37692.0,37690.0,0.066336]
[1643954732793,0.4461944,37692.0,37690.0,0.066336]
[1643954733189,0.0988844,37692.0,37690.0,0.066336]
[1643954733633,0.0988844,37692.0,37686.0,0.43990794]
[1643954733825,0.34731,37691.0,37686.0,0.43990794]
[1643954734027,0.34731,37690.0,37686.0,0.43990794]
[1643954734225,0.0988844,37692.0,37686.0,0.43990794]
[1643954734626,0.0988844,37692.0,37687.0,0.132681]
[1643954734825,0.1488844,37692.0,37687.0,0.132681]
[1643954735126,0.00089725,37691.0,37687.0,0.132681]
[1643954735525,0.00089725,37691.0,37689.0,0.04999999]
[1643954735924,0.02016085,37694.0,37689.0,0.04999999]
[1643954736326,0.00089724,37692.0,37691.0,0.26423571]
[1643954737126,0.02016085,37694.0,37691.0,0.26423571]
[1643954737372,0.02016085,37694.0,37691.0,0.066336]
[1643954737373,0.00089723,37693.0,37691.0,0.066336]
[1643954738473,1.91750239,37694.0,37691.0,0.26985634]
[1643954738675,0.34731,37693.0,37691.0,0.066336]
[1643954738874,0.39731,37693.0,37691.0,0.066336]
[1643954739774,0.73589422,37697.0,37691.0,0.066336]
[1643954739775,0.00089722,37694.0,37691.0,0.066336]
[1643954739975,0.34731,37693.0,37691.0,0.066336]
[1643954740175,0.39731,37693.0,37692.0,0.26694834]
[1643954740379,0.3972459,37693.0,37692.0,0.26694834]
[1643954741425,0.00089722,37694.0,37692.0,0.26694834]
[1643954741628,0.34731,37693.0,37692.0,0.26694834]
[1643954742224,0.39731,37693.0,37692.0,0.26694834]
[1643954742428,0.39731,37693.0,37690.0,0.36645312]
[1643954742626,0.00089722,37694.0,37690.0,0.36645312]
[1643954742826,0.34731,37693.0,37690.0,0.36645312]
[1643954743229,0.05,37693.0,37690.0,0.36645312]
[1643954743427,0.05089723,37693.0,37690.0,0.36645312]
[1643954743626,0.05089723,37693.0,37690.0,0.132669]
[1643954743627,0.00089723,37693.0,37690.0,0.132669]
[1643954744229,0.34731,37692.0,37690.0,0.132669]
[1643954744631,0.34731,37691.0,37690.0,0.132669]
[1643954745481,0.44065528,37691.0,37690.0,0.132669]
[1643954745881,0.44065528,37691.0,37690.0,0.062669]
[1643954747180,0.09334528,37691.0,37690.0,0.062669]
[1643954747781,0.09334528,37691.0,37690.0,0.112669]
[1643954747983,0.05,37692.0,37690.0,0.112669]
[1643954748184,0.00089724,37692.0,37690.0,0.112669]
[1643954748382,0.00089724,37692.0,37691.0,0.13268]
[1643954749223,0.07001101,37695.0,37692.0,0.26276395]
[1643954749424,0.00089723,37693.0,37691.0,0.13268]
[1643954750025,0.00089723,37693.0,37688.0,0.04999999]
[1643954750232,0.15,37692.0,37688.0,0.04999999]
[1643954750428,0.15,37694.0,37688.0,0.04999999]
[1643954750628,0.00089724,37692.0,37688.0,0.04999999]
[1643954751027,0.00089724,37692.0,37687.0,0.56465453]
[1643954751626,0.15,37694.0,37687.0,0.56465453]
[1643954751627,0.15,37694.0,37690.0,0.04999999]
[1643954751828,0.00089725,37691.0,37690.0,0.04999999]
[1643954752773,0.34731,37693.0,37690.0,0.04999999]
[1643954753273,0.34731,37693.0,37687.0,0.51465454]
[1643954753274,0.00089724,37692.0,37688.0,0.04999999]
[1643954753873,0.00089724,37692.0,37687.0,0.51465454]
[1643954754075,0.15,37690.0,37687.0,0.51465454]
[1643954754676,0.00089724,37692.0,37687.0,0.80526517]
[1643954754878,0.00089724,37692.0,37689.0,0.04999999]
[1643954755176,0.08950158,37690.0,37689.0,0.04999999]
[1643954755778,0.00089724,37692.0,37689.0,0.04999999]
[1643954756425,0.01880771,37694.0,37689.0,0.04999999]
[1643954756627,0.00089724,37692.0,37689.0,0.04999999]
[1643954756824,0.00089724,37692.0,37687.0,0.51465454]
[1643954756825,0.10255713,37691.0,37687.0,0.51465454]
[1643954757026,0.00089724,37692.0,37687.0,0.80527544]
[1643954757226,0.00089724,37692.0,37689.0,0.04999999]
[1643954757626,0.01880771,37694.0,37689.0,0.40759122]
[1643954757828,0.34731,37693.0,37690.0,0.04999999]
[1643954758228,0.10363648,37691.0,37687.0,0.56465453]
[1643954758427,0.10363648,37691.0,37687.0,0.32234816]
[1643954759328,0.10363648,37691.0,37689.0,0.04999999]
[1643954759729,0.10363648,37691.0,37688.0,0.26807844]
[1643954760173,0.10363648,37691.0,37687.0,0.27234817]
[1643954760775,0.02008024,37695.0,37688.0,0.04999999]
[1643954761076,0.34731,37694.0,37687.0,0.27234817]
[1643954761276,0.34731,37694.0,37690.0,0.19289726]
[1643954761473,0.34731,37694.0,37687.0,0.27234817]
[1643954761474,0.15,37690.0,37687.0,0.27234817]
[1643954761674,0.15,37692.0,37687.0,0.27234817]
[1643954762074,0.07430657,37692.0,37687.0,0.27234817]
[1643954762373,0.07430657,37692.0,37689.0,0.25455795]
[1643954762575,0.15,37694.0,37689.0,0.25455795]
[1643954762774,0.34731,37693.0,37689.0,0.30455794]
[1643954764125,0.02020084,37696.0,37692.0,0.04999999]
[1643954764322,0.36751084,37696.0,37695.0,0.04999999]
[1643954764524,0.36751084,37696.0,37695.0,0.04990003]
[1643954764925,0.36751084,37696.0,37695.0,0.48666481]
[1643954765124,0.36751084,37696.0,37695.0,0.29369465]
[1643954765327,0.0111,37719.0,37697.0,1.3]
[1643954765634,1.172649,37733.0,37697.0,1.3]
[1643954765635,0.26543458,37735.0,37718.0,1.4]
[1643954765835,0.45002653,37736.0,37734.0,0.04946003]
[1643954766027,0.39859924,37737.0,37736.0,0.09675833]
[1643954766228,0.00185994,37741.0,37736.0,0.0531]
[1643954766229,0.39859924,37738.0,37736.0,0.0531]
[1643954766432,0.00185994,37741.0,37737.0,0.41330184]
[1643954766636,0.04999999,37740.0,37738.0,0.0481]
[1643954766828,0.0115777,37739.0,37738.0,0.70544172]
[1643954767028,0.0115777,37739.0,37738.0,0.395139]
[1643954767228,0.0115777,37739.0,37738.0,0.495139]
[1643954767484,0.0115777,37739.0,37738.0,1.495139]
[1643954767982,0.0115777,37739.0,37737.0,0.06625184]
[1643954767983,0.06157769,37739.0,37737.0,0.06625184]
[1643954768176,0.06157769,37739.0,37736.0,0.06626]
[1643954768376,0.06157769,37739.0,37731.0,0.132516]
[1643954768377,0.04999999,37737.0,37731.0,0.132516]
[1643954768575,0.04999999,37732.0,37725.0,0.05]
[1643954768777,0.04999999,37729.0,37728.0,0.48]
[1643954769798,0.47989231,37729.0,37728.0,0.48]
[1643954770174,0.47983231,37729.0,37728.0,0.48]
[1643954770375,0.47971231,37729.0,37728.0,0.48]
[1643954770576,0.47959231,37729.0,37728.0,0.48]
[1643954770776,0.47947231,37729.0,37728.0,0.48]
[1643954770980,0.47929231,37729.0,37728.0,0.48]
[1643954771229,0.47911231,37729.0,37728.0,0.48]
[1643954771429,0.47393231,37729.0,37728.0,0.48]
[1643954771632,0.47381231,37729.0,37728.0,0.48]
[1643954771830,0.81809653,37729.0,37717.0,3.12040902]
[1643954772031,0.08734602,37719.0,37718.0,0.006299]
[1643954772430,0.08734602,37719.0,37717.0,0.07172266]
[1643954772634,0.08734602,37719.0,37717.0,0.23581297]
[1643954772832,0.25506504,37729.0,37718.0,0.00464424]
[1643954773032,0.04535575,37727.0,37725.0,0.00464424]
[1643954773237,0.04535575,37727.0,37726.0,0.006292]
[1643954773431,0.04535575,37727.0,37726.0,0.00464424]
[1643954773830,0.04535575,37727.0,37718.0,0.32691727]
[1643954774031,0.08535254,37730.0,37726.0,0.25873393]
[1643954774237,0.04529575,37731.0,37729.0,0.00464424]
[1643954774432,0.6245,37738.0,37735.0,0.21393491]
[1643954774433,0.04529575,37738.0,37735.0,0.21393491]
[1643954774633,0.0115777,37739.0,37736.0,0.01103624]
[1643954774634,0.0115177,37739.0,37736.0,0.01103624]
[1643954774886,0.02017541,37738.0,37736.0,0.01103624]
[1643954775085,0.02017541,37738.0,37736.0,0.006272]
[1643954775086,0.94523575,37737.0,37736.0,0.006272]
[1643954775284,0.94523575,37737.0,37727.0,0.00476424]
[1643954775285,1.3837579,37737.0,37727.0,0.00476424]
[1643954775485,0.14954585,37731.0,37727.0,0.00476424]
[1643954775889,0.14954585,37731.0,37720.0,0.32217199]
[1643954776086,0.00093469,37734.0,37730.0,0.00476424]
[1643954776292,0.00093469,37734.0,37733.0,0.05476424]
[1643954776488,0.00093469,37734.0,37733.0,0.42236584]
[1643954776691,0.00093469,37734.0,37733.0,0.14443224]
[1643954776890,0.03106241,37739.0,37735.0,0.006273]
[1643954777086,0.69567718,37737.0,37736.0,0.00476424]
[1643954777288,0.04523575,37738.0,37736.0,0.01103624]
[1643954777486,0.04523575,37738.0,37737.0,0.01103524]
[1643954777687,0.04523575,37738.0,37737.0,0.006271]
[1643954778728,0.04523575,37738.0,37734.0,0.00476424]
[1643954778930,0.04523575,37738.0,37735.0,0.006271]
[1643954779131,0.04523575,37738.0,37737.0,0.00476424]
[1643954779328,0.04523575,37738.0,37737.0,0.01103524]
[1643954779532,0.04613054,37738.0,37737.0,0.01103524]
[1643954779928,0.00089479,37738.0,37737.0,0.01103524]
[1643954780129,0.36461144,37737.0,37735.0,0.05]
[1643954780329,0.05089478,37738.0,37730.0,0.05]
[1643954780330,0.04999999,37736.0,37730.0,0.05]
[1643954780530,0.0113377,37739.0,37730.0,0.05]
[1643954780531,0.0113377,37739.0,37731.0,0.3279336]
[1643954780731,0.0113377,37739.0,37732.0,0.05]
[1643954780732,0.05089479,37738.0,37732.0,0.05]
[1643954780927,0.05089479,37738.0,37733.0,0.3279336]
[1643954781330,0.27435112,37729.0,37724.0,0.34968851]
[1643954781532,0.0008948,37738.0,37724.0,0.21260051]
[1643954781533,0.3279336,37733.0,37724.0,0.21260051]
[1643954781729,0.0113377,37739.0,37726.0,0.19047783]
[1643954781730,0.0531,37729.0,37726.0,0.19047783]
[1643954781928,0.00089487,37729.0,37718.0,0.5464]
[1643954782131,0.00089487,37729.0,37724.0,0.08774845]
[1643954782385,0.00089487,37729.0,37725.0,0.31836221]
[1643954782677,0.00089487,37729.0,37723.0,0.06625553]
[1643954782879,0.04999999,37729.0,37719.0,0.45158354]
[1643954783078,0.04999999,37735.0,37720.0,0.31992711]
[1643954783279,0.00089757,37729.0,37721.0,0.066257]
[1643954783878,0.00089757,37729.0,37722.0,0.3279336]
[1643954784081,0.09049494,37732.0,37725.0,0.20941228]
[1643954784278,0.00089759,37727.0,37725.0,0.20941228]
[1643954784479,0.00089759,37727.0,37725.0,0.30941228]
[1643954784685,0.00089759,37727.0,37725.0,0.40941228]
[1643954785079,0.00059382,37727.0,37725.0,0.40941228]
[1643954785278,0.09049494,37732.0,37725.0,0.40941228]
[1643954785279,0.14049493,37732.0,37725.0,0.40941228]
[1643954785480,0.09049494,37732.0,37725.0,0.2]
[1643954785779,0.14049493,37732.0,37725.0,0.2]
[1643954785979,0.09049494,37732.0,37725.0,0.1]
[1643954786227,0.34449677,37742.0,37725.0,0.1]
[1643954786228,0.00185994,37741.0,37730.0,0.04999999]
[1643954786427,0.00185994,37741.0,37731.0,0.25346463]
[1643954786627,0.00358991,37736.0,37732.0,0.05]
[1643954787025,0.00358991,37736.0,37735.0,0.04999999]
[1643954787628,0.00185994,37741.0,37735.0,0.04999999]
[1643954787930,0.0057377,37739.0,37738.0,0.04999999]
[1643954788126,0.0057377,37739.0,37738.0,0.09999999]
[1643954788328,0.00195296,37761.0,37741.0,1.45]
[1643954788538,0.0022,37768.0,37759.0,1.0]
[1643954788731,0.80087,37777.0,37769.0,0.27023973]
[1643954788928,0.80087,37777.0,37760.0,0.72191593]
[1643954788929,0.333361,37773.0,37760.0,0.38389003]
[1643954789130,0.80087,37777.0,37764.0,0.06618]
[1643954789333,0.0058,37775.0,37765.0,0.0531]
[1643954789630,0.0058,37775.0,37766.0,0.3270259]
[1643954789889,0.0058,37775.0,37761.0,0.04999999]
[1643954789890,0.37540272,37774.0,37767.0,0.0531]
[1643954790083,0.37540272,37774.0,37760.0,0.24091877]
[1643954790084,0.3280259,37773.0,37765.0,0.0531]
[1643954790286,0.3280259,37773.0,37766.0,0.0531]
[1643954790287,0.3279659,37773.0,37766.0,0.0531]
[1643954790483,0.37522272,37774.0,37767.0,0.0531]
[1643954790684,0.37510272,37774.0,37768.0,0.84817583]
[1643954790886,0.37510272,37774.0,37768.0,0.89817583]
[1643954791084,0.37510272,37774.0,37768.0,0.84817583]
[1643954791085,0.61819326,37773.0,37768.0,0.84817583]
[1643954791291,1.897176,37769.0,37768.0,0.84817583]
[1643954791499,1.897116,37769.0,37768.0,0.84817583]
[1643954791686,1.897121,37769.0,37768.0,0.08954563]
[1643954791885,0.347181,37767.0,37750.0,0.0049]
[1643954792187,1.54994,37768.0,37748.0,0.347241]
[1643954792188,0.4280259,37766.0,37748.0,0.347241]
[1643954792387,0.3780259,37765.0,37747.0,0.16087588]
[1643954792584,0.1497,37761.0,37748.0,0.41349345]
[1643954792786,0.00089981,37759.0,37749.0,0.024432]
[1643954792983,0.00089981,37759.0,37749.0,0.3280259]
[1643954793188,0.00089981,37759.0,37750.0,0.347279]
[1643954793390,0.00089981,37759.0,37752.0,0.024411]
[1643954793635,0.3280259,37761.0,37752.0,0.024411]
[1643954793832,0.08089929,37754.0,37748.0,0.347279]
[1643954794028,0.347279,37756.0,37752.0,0.0192547]
[1643954794228,0.32892573,37757.0,37752.0,0.0192547]
[1643954794229,0.00089983,37757.0,37752.0,0.0192547]
[1643954794433,0.32746449,37767.0,37753.0,0.347279]
[1643954794628,0.1497,37760.0,37752.0,0.0192547]
[1643954794831,0.61004,37774.0,37758.0,0.04999999]
[1643954795039,0.00574,37775.0,37763.0,0.08185371]
[1643954795230,0.00574,37775.0,37760.0,0.04999999]
[1643954795231,0.00574,37775.0,37761.0,0.4619959]
[1643954795430,0.00574,37775.0,37763.0,0.066182]
[1643954795631,0.00574,37775.0,37767.0,0.04999999]
[1643954795829,0.00574,37775.0,37764.0,0.3280259]
[1643954795830,0.00574,37775.0,37764.0,0.2]
[1643954796028,0.00574,37775.0,37764.0,0.4280259]
[1643954796230,0.00574,37775.0,37766.0,0.08993015]
[1643954796429,0.00055239,37771.0,37766.0,0.3280259]
[1643954796631,0.00055239,37771.0,37765.0,0.09999999]
[1643954796829,0.00055239,37771.0,37764.0,0.49421043]
[1643954797030,0.00055239,37771.0,37765.0,0.09999999]
[1643954797230,0.00574,37775.0,37767.0,0.347269]
[1643954797478,0.00096351,37770.0,37767.0,0.347269]
[1643954797682,0.00096351,37770.0,37767.0,0.447269]
[1643954797879,0.00096351,37770.0,37769.0,0.02435]
[1643954798479,0.00574,37775.0,37769.0,0.02435]
[1643954798680,0.00574,37775.0,37767.0,0.20390042]
[1643954798681,0.00096349,37771.0,37767.0,0.20390042]
[1643954798878,0.00096349,37771.0,37768.0,0.347269]
[1643954799681,0.00574,37775.0,37768.0,0.347269]
[1643954799884,0.00385338,37777.0,37774.0,1.197269]
[1643954800111,0.00196494,37781.0,37777.0,0.024269]
[1643954800288,0.0011,37802.0,37782.0,1.2]
[1643954800484,0.0011,37802.0,37786.0,0.04999999]
[1643954800682,0.0011,37802.0,37787.0,0.122952]
[1643954800882,0.11053223,37799.0,37787.0,0.2920984]
[1643954801138,0.11053223,37799.0,37788.0,0.39726899]
[1643954801139,0.01,37799.0,37788.0,0.39726899]
[1643954801329,0.01,37799.0,37788.0,0.49726899]
[1643954801532,0.01,37799.0,37788.0,0.39726899]
[1643954801738,0.01,37799.0,37788.0,0.49726899]
[1643954801933,0.32066022,37797.0,37787.0,0.095]
[1643954802132,0.37066022,37797.0,37784.0,0.02000074]
[1643954802331,0.28322387,37790.0,37784.0,0.02000074]
[1643954802531,0.347269,37788.0,37784.0,0.02000074]
[1643954802937,0.09356913,37787.0,37784.0,0.02000074]
[1643954803734,0.347269,37786.0,37784.0,0.02000074]
[1643954804332,0.347269,37785.0,37779.0,0.02000328]
[1643954804533,0.27391496,37783.0,37779.0,0.02000328]
[1643954804982,0.347269,37782.0,37779.0,0.02000328]
[1643954805381,0.71251708,37782.0,37779.0,0.02000328]
[1643954805584,0.09783345,37781.0,37779.0,0.02000328]
[1643954805780,0.347269,37780.0,37779.0,0.02000328]
[1643954806381,0.347269,37780.0,37775.0,0.00096642]
[1643954806783,0.26021111,37777.0,37775.0,0.00096642]
[1643954806986,0.26021111,37777.0,37776.0,0.347269]
[1643954807581,0.60748011,37777.0,37775.0,0.00096638]
[1643954807781,0.26021111,37777.0,37776.0,0.347269]
[1643954807983,0.00096627,37779.0,37776.0,0.347269]
[1643954808185,0.09783345,37781.0,37776.0,0.347269]
[1643954808383,0.00090139,37779.0,37775.0,0.00090149]
[1643954809025,0.24019816,37778.0,37776.0,0.347269]
[1643954809428,0.23829816,37778.0,37776.0,0.347269]
[1643954810026,0.23829816,37778.0,37776.0,0.024256]
[1643954810226,0.23829816,37778.0,37777.0,0.024255]
[1643954810626,0.23823816,37778.0,37777.0,0.024255]
[1643954810829,0.23811816,37778.0,37777.0,0.024255]
[1643954811026,0.23799816,37778.0,37777.0,0.024255]
[1643954811226,0.23781816,37778.0,37777.0,0.024255]
[1643954812026,0.31328513,37778.0,37777.0,0.024255]
[1643954812226,0.31328513,37778.0,37774.0,0.024257]
[1643954813076,0.0487,37777.0,37774.0,0.024257]
[1643954814880,0.0987,37777.0,37773.0,1.25898639]
[1643954815079,0.1487,37777.0,37773.0,1.25898639]
[1643954815277,0.1487,37777.0,37773.0,1.25802032]
[1643954815278,0.32825449,37776.0,37773.0,1.25802032]
[1643954815478,0.395924,37775.0,37773.0,1.25802032]
[1643954815681,0.0487,37775.0,37773.0,1.25898638]
[1643954816135,0.65,37774.0,37773.0,1.25898638]
[1643954816325,0.395924,37774.0,37773.0,1.25898638]
[1643954816526,0.595924,37774.0,37769.0,0.02452027]
[1643954816725,0.1497,37773.0,37769.0,0.02452027]
[1643954816926,0.0487,37772.0,37769.0,0.02452027]
[1643954817325,0.0487,37772.0,37759.0,0.05]
[1643954817329,0.27683457,37767.0,37759.0,0.05]
[1643954817526,0.395924,37766.0,37759.0,0.05]
[1643954817927,0.1997,37765.0,37759.0,0.05]
[1643954818126,0.395924,37764.0,37759.0,0.05]
[1643954818324,0.495924,37764.0,37751.0,0.05]
[1643954818528,0.56967533,37764.0,37763.0,8.9726]
[1643954818831,1.20326753,37764.0,37763.0,7.9953298]
[1643954820876,1.20254754,37764.0,37763.0,7.9953298]
[1643954821084,0.86880603,37764.0,37763.0,7.9953298]
[1643954821277,1.1717667,37764.0,37763.0,7.9953298]
[1643954821586,0.86880603,37764.0,37763.0,7.9953298]
[1643954822478,1.17002924,37764.0,37763.0,7.9953298]
[1643954822679,0.86880603,37764.0,37763.0,7.9953298]
[1643954823481,1.42770977,37764.0,37763.0,7.9953298]
[1643954823733,1.47770977,37764.0,37763.0,7.9953298]
[1643954824237,1.21983867,37764.0,37763.0,7.23665729]
[1643954824428,0.91880603,37764.0,37763.0,7.23665729]
[1643954824829,1.2274079,37764.0,37763.0,7.23665729]